[Event "FIDE Grand Swiss 2023"]
[Site "Villa Marina, Douglas, Isle of Man"]
[Date "2023.10.28"]
[Round "4.38"]
[White "Rodrigue-Lemieux, Shawn"]
[Black "Pichot, Alan"]
[Result "1/2-1/2"]
[WhiteElo "2488"]
[BlackElo "2650"]
[EventDate "2023.10.25"]
[ECO "B51"]
[PlyCount "104"]
[BlackFideId "110973"]
[TimeControl "40/100 + 20/50 + 15 + 30s/move"]
[WhiteFideId "2620049"]

1.e4 {[%clk 01:40:57] [%emt 00:00:02]} 1...c5 {[%clk 01:40:49] [%emt 00:00:11]} 
2.Nf3 {[%clk 01:41:19] [%emt 00:00:08]} 2...d6 {[%clk 01:41:07] [%emt 00:00:13]} 
3.Bb5+ {[%clk 01:41:37] [%emt 00:00:11]} 3...Nd7 {[%clk 01:41:25] [%emt
00:00:11]} 4.Ba4 {[%clk 01:41:52] [%emt 00:00:16]} 4...Nf6 {[%clk 01:41:36]
[%emt 00:00:19]} 5.O-O {[%clk 01:42:09] [%emt 00:00:12]} 5...e6 {[%clk 01:41:33]
[%emt 00:00:34]} 6.Re1 {[%clk 01:42:11] [%emt 00:00:28]} 6...Be7 {[%clk
01:41:34] [%emt 00:00:28]} 7.c3 {[%clk 01:41:08] [%emt 00:01:32]} 7...a6 {[%clk
01:41:06] [%emt 00:00:59]} 8.d4 {[%clk 01:41:16] [%emt 00:00:23]} 8...b5 {[%clk
01:40:39] [%emt 00:00:57]} 9.Bc2 {[%clk 01:41:32] [%emt 00:00:13]} 9...Bb7 
{[%clk 01:40:45] [%emt 00:00:24]} 10.Nbd2 {[%clk 01:38:53] [%emt 00:03:09]} 
10...O-O {[%clk 01:39:21] [%emt 00:01:55]} 11.e5 {[%clk 01:27:07] [%emt
00:12:15]} 11...dxe5 {[%clk 01:38:29] [%emt 00:01:23]} 12.dxe5 {[%clk 01:27:29]
[%emt 00:00:08]} 12...Nd5 {[%clk 01:38:43] [%emt 00:00:16]} 13.Ne4 {[%clk
01:18:58] [%emt 00:09:01]} 13...Qc7 {[%clk 01:36:38] [%emt 00:02:35]} 14.Neg5 
{[%clk 01:00:45] [%emt 00:18:43]} 14...g6 {[%clk 01:35:26] [%emt 00:01:42]} 
15.Qd2 {[%clk 00:50:09] [%emt 00:11:05]} 15...Rfd8 {[%clk 00:42:11] [%emt
00:53:45]} 16.Nxh7 {[%clk 00:49:28] [%emt 00:01:12]} 16...Kxh7 {[%clk 00:40:16]
[%emt 00:02:25]} 17.Bxg6+ {[%clk 00:45:07] [%emt 00:04:51]} 17...Kg8 {[%clk
00:39:47] [%emt 00:00:59]} 18.Qh6 {[%clk 00:22:19] [%emt 00:23:18]} 18...Nf8 
{[%clk 00:39:58] [%emt 00:00:20]} 19.Bc2 {[%clk 00:21:30] [%emt 00:01:18]} 
19...f5 {[%clk 00:39:54] [%emt 00:00:33]} 20.g4 {[%clk 00:20:27] [%emt
00:01:33]} 20...Qc6 {[%clk 00:32:49] [%emt 00:07:36]} 21.gxf5 {[%clk 00:14:41]
[%emt 00:06:15]} 21...exf5 {[%clk 00:32:59] [%emt 00:00:21]} 22.Bxf5 {[%clk
00:12:42] [%emt 00:02:28]} 22...Nc7 {[%clk 00:13:16] [%emt 00:20:12]} 23.Qxc6 
{[%clk 00:11:16] [%emt 00:01:58]} 23...Bxc6 {[%clk 00:13:40] [%emt 00:00:06]} 
24.Ng5 {[%clk 00:11:42] [%emt 00:00:03]} 24...Rd5 {[%clk 00:06:50] [%emt
00:07:21]} 25.Be4 {[%clk 00:10:55] [%emt 00:01:16]} 25...Nfe6 {[%clk 00:07:00]
[%emt 00:00:21]} 26.Bxd5 {[%clk 00:08:29] [%emt 00:02:56]} 26...Bxd5 {[%clk
00:07:21] [%emt 00:00:09]} 27.h4 {[%clk 00:07:44] [%emt 00:01:14]} 27...Kg7 
{[%clk 00:07:05] [%emt 00:00:46]} 28.Kh2 {[%clk 00:06:22] [%emt 00:01:52]} 
28...Rf8 {[%clk 00:06:23] [%emt 00:01:13]} 29.Be3 {[%clk 00:05:42] [%emt
00:01:09]} 29...Nxg5 {[%clk 00:05:38] [%emt 00:01:16]} 30.hxg5 {[%clk 00:06:04]
[%emt 00:00:07]} 30...Ne6 {[%clk 00:05:18] [%emt 00:00:51]} 31.Rad1 {[%clk
00:06:13] [%emt 00:00:20]} 31...Bc6 {[%clk 00:05:30] [%emt 00:00:18]} 32.Kg3 
{[%clk 00:02:27] [%emt 00:04:17]} 32...Kg6 {[%clk 00:04:42] [%emt 00:01:18]} 
33.f4 {[%clk 00:02:24] [%emt 00:00:32]} 33...Rh8 {[%clk 00:04:48] [%emt
00:00:24]} 34.Bf2 {[%clk 00:01:32] [%emt 00:01:23]} 34...Kf5 {[%clk 00:03:49]
[%emt 00:01:29]} 35.Be3 {[%clk 00:01:19] [%emt 00:00:43]} 35...Kg6 {[%clk
00:01:32] [%emt 00:02:47]} 36.Rd2 {[%clk 00:01:01] [%emt 00:00:48]} 36...Ng7 
{[%clk 00:01:40] [%emt 00:00:22]} 37.Bf2 {[%clk 00:00:38] [%emt 00:00:53]} 
37...Nf5+ {[%clk 00:00:57] [%emt 00:01:13]} 38.Kg4 {[%clk 00:01:07]} 38...Rh2 
{[%clk 00:00:38] [%emt 00:00:49]} 39.e6 {[%clk 00:00:57] [%emt 00:00:40]} 
39...c4 {[%clk 00:00:32] [%emt 00:00:37]} 40.Re5 {[%clk 00:00:50] [%emt
00:00:36]} 40...Rg2+ {[%clk 00:00:35] [%emt 00:00:27]} 41.Kh3 {[%clk 00:01:15]
[%emt 00:00:05]} 41...Bf3 {[%clk 00:40:36] [%emt 00:10:28]} 42.b3 {[%clk
00:41:25] [%emt 00:10:20]} 42...b4 {[%clk 00:22:12] [%emt 00:18:54]} 43.Be1 
{[%clk 00:31:27] [%emt 00:10:28]} 43...Rg1 {[%clk 00:19:31] [%emt 00:03:12]} 
44.Rf2 {[%clk 00:30:18] [%emt 00:01:37]} 44...Bc6 {[%clk 00:16:43] [%emt
00:03:19]} 45.cxb4 {[%clk 00:26:56] [%emt 00:03:52]} 45...c3 {[%clk 00:16:51]
[%emt 00:00:23]} 46.Rc2 {[%clk 00:25:01] [%emt 00:02:25]} 46...Rh1+ {[%clk
00:09:41] [%emt 00:07:40]} 47.Kg4 {[%clk 00:25:28] [%emt 00:00:02]} 47...Rg1+ 
{[%clk 00:09:11] [%emt 00:01:01]} 48.Kh3 {[%clk 00:25:56] [%emt 00:00:01]} 
48...Bd6 {[%clk 00:02:24] [%emt 00:07:17]} 49.Rxc3 {[%clk 00:21:47] [%emt
00:04:39]} 49...Rh1+ {[%clk 00:02:24] [%emt 00:00:31]} 50.Kg4 {[%clk 00:22:15]
[%emt 00:00:01]} 50...Rg1+ {[%clk 00:02:39] [%emt 00:00:16]} 51.Kh3 {[%clk
00:22:24] [%emt 00:00:20]} 51...Rh1+ {[%clk 00:02:33] [%emt 00:00:37]} 52.Kg4 
{[%clk 00:22:48] [%emt 00:00:05]} 52...Rg1+ {[%clk 00:02:30] [%emt 00:00:33]} 1/2-1/2

[Event "FIDE Grand Swiss 2023"]
[Site "Villa Marina, Douglas, Isle of Man"]
[Date "2023.10.28"]
[Round "4.39"]
[White "Harikrishna, Pentala"]
[Black "Royal, Shreyas"]
[Result "1-0"]
[WhiteElo "2716"]
[BlackElo "2407"]
[EventDate "2023.10.25"]
[ECO "C78"]
[PlyCount "73"]
[BlackFideId "448869"]
[TimeControl "40/100 + 20/50 + 15 + 30s/move"]
[WhiteFideId "5007003"]

1.e4 {[%clk 01:40:46] [%emt 00:00:13]} 1...e5 {[%clk 01:40:50] [%emt 00:00:11]} 
2.Nf3 {[%clk 01:41:11] [%emt 00:00:04]} 2...Nc6 {[%clk 01:41:13] [%emt
00:00:07]} 3.Bb5 {[%clk 01:41:37] [%emt 00:00:04]} 3...a6 {[%clk 01:41:32] [%emt
00:00:12]} 4.Ba4 {[%clk 01:42:02] [%emt 00:00:05]} 4...Nf6 {[%clk 01:41:55]
[%emt 00:00:06]} 5.O-O {[%clk 01:42:25] [%emt 00:00:07]} 5...b5 {[%clk 01:41:51]
[%emt 00:00:35]} 6.Bb3 {[%clk 01:42:46] [%emt 00:00:08]} 6...Bc5 {[%clk
01:42:16] [%emt 00:00:05]} 7.c3 {[%clk 01:43:02] [%emt 00:00:14]} 7...d6 {[%clk
01:42:39] [%emt 00:00:08]} 8.d4 {[%clk 01:43:27] [%emt 00:00:05]} 8...Bb6 
{[%clk 01:43:03] [%emt 00:00:05]} 9.Be3 {[%clk 01:43:40] [%emt 00:00:18]} 
9...O-O {[%clk 01:42:44] [%emt 00:00:49]} 10.Nbd2 {[%clk 01:43:49] [%emt
00:00:20]} 10...h6 {[%clk 01:41:58] [%emt 00:01:16]} 11.h3 {[%clk 01:43:53]
[%emt 00:00:26]} 11...Re8 {[%clk 01:41:31] [%emt 00:00:57]} 12.Re1 {[%clk
01:43:11] [%emt 00:01:12]} 12...exd4 {[%clk 01:40:58] [%emt 00:01:03]} 13.cxd4 
{[%clk 01:40:30] [%emt 00:03:11]} 13...Nb4 {[%clk 01:41:00] [%emt 00:00:28]} 
14.d5 {[%clk 01:35:21] [%emt 00:05:39]} 14...c5 {[%clk 01:34:12] [%emt
00:07:18]} 15.dxc6 {[%clk 01:29:49] [%emt 00:06:03]} 15...Nxc6 {[%clk 01:27:42]
[%emt 00:07:00]} 16.Nf1 {[%clk 01:26:12] [%emt 00:04:05]} 16...Be6 {[%clk
01:15:20] [%emt 00:12:53]} 17.Ng3 {[%clk 01:23:20] [%emt 00:03:22]} 17...Bxb3 
{[%clk 01:00:15] [%emt 00:15:36]} 18.axb3 {[%clk 01:21:52] [%emt 00:01:56]} 
18...Bxe3 {[%clk 00:46:31] [%emt 00:14:15]} 19.Rxe3 {[%clk 01:22:10] [%emt
00:00:12]} 19...d5 {[%clk 00:45:10] [%emt 00:01:52]} 20.e5 {[%clk 01:13:41]
[%emt 00:08:58]} 20...Nd7 {[%clk 00:37:04] [%emt 00:08:37]} 21.Qe2 {[%clk
01:11:09] [%emt 00:03:00]} 21...d4 {[%clk 00:30:27] [%emt 00:07:08]} 22.Re4 
{[%clk 01:09:42] [%emt 00:01:57]} 22...Nf8 {[%clk 00:30:53] [%emt 00:00:05]} 
23.Nf5 {[%clk 01:01:13] [%emt 00:08:58]} 23...Ng6 {[%clk 00:26:17] [%emt
00:05:07]} 24.N3xd4 {[%clk 00:52:46] [%emt 00:08:57]} 24...Nxd4 {[%clk 00:20:10]
[%emt 00:06:37]} 25.Nxd4 {[%clk 00:48:35] [%emt 00:04:40]} 25...Qd5 {[%clk
00:18:41] [%emt 00:02:00]} 26.Re1 {[%clk 00:46:39] [%emt 00:02:25]} 26...Rad8 
{[%clk 00:18:58] [%emt 00:00:13]} 27.Nf5 {[%clk 00:45:51] [%emt 00:01:17]} 
27...Qxb3 {[%clk 00:17:42] [%emt 00:01:47]} 28.Qg4 {[%clk 00:41:12] [%emt
00:05:09]} 28...Qxb2 {[%clk 00:14:45] [%emt 00:03:28]} 29.h4 {[%clk 00:41:26]
[%emt 00:00:15]} 29...h5 {[%clk 00:15:09] [%emt 00:00:06]} 30.Qxh5 {[%clk
00:41:32] [%emt 00:00:23]} 30...Rd5 {[%clk 00:12:21] [%emt 00:03:19]} 31.e6 
{[%clk 00:41:31] [%emt 00:00:31]} 31...Rxe6 {[%clk 00:12:26] [%emt 00:00:25]} 
32.Nh6+ {[%clk 00:41:34] [%emt 00:00:26]} 32...gxh6 {[%clk 00:12:52] [%emt
00:00:05]} 33.Qxd5 {[%clk 00:41:59] [%emt 00:00:05]} 33...Rf6 {[%clk 00:11:05]
[%emt 00:02:17]} 34.Qc5 {[%clk 00:35:26] [%emt 00:07:03]} 34...Nf4 {[%clk
00:09:58] [%emt 00:01:38]} 35.Re8+ {[%clk 00:33:51] [%emt 00:02:05]} 35...Kh7 
{[%clk 00:10:22] [%emt 00:00:06]} 36.Qf8 {[%emt 00:02:47]} 36...Nh3+ {[%clk
00:09:07]} 37.Kh2 {[%clk 00:33:40] [%emt 00:00:08]} 1-0

[Event "FIDE Grand Swiss 2023"]
[Site "Villa Marina, Douglas, Isle of Man"]
[Date "2023.10.28"]
[Round "4.40"]
[White "Van Foreest, Jorden"]
[Black "Svane, Frederik"]
[Result "0-1"]
[WhiteElo "2707"]
[BlackElo "2626"]
[EventDate "2023.10.25"]
[ECO "E05"]
[PlyCount "120"]
[BlackFideId "12923044"]
[TimeControl "40/100 + 20/50 + 15 + 30s/move"]
[WhiteFideId "1039784"]

1.d4 {[%clk 01:40:56] [%emt 00:00:03]} 1...Nf6 {[%clk 01:40:53] [%emt 00:00:08]} 
2.c4 {[%clk 01:41:19] [%emt 00:00:07]} 2...e6 {[%clk 01:41:19] [%emt 00:00:05]} 
3.g3 {[%clk 01:41:23] [%emt 00:00:25]} 3...d5 {[%clk 01:41:44] [%emt 00:00:06]} 
4.Bg2 {[%clk 01:41:26] [%emt 00:00:27]} 4...Be7 {[%clk 01:42:03] [%emt
00:00:11]} 5.Nf3 {[%clk 01:41:45] [%emt 00:00:10]} 5...O-O {[%clk 01:42:28]
[%emt 00:00:06]} 6.O-O {[%clk 01:42:07] [%emt 00:00:07]} 6...dxc4 {[%clk
01:42:55] [%emt 00:00:04]} 7.h4 {[%clk 01:42:26] [%emt 00:00:10]} 7...Nc6 
{[%clk 01:41:49] [%emt 00:01:37]} 8.Na3 {[%clk 01:41:04] [%emt 00:01:51]} 
8...Bxa3 {[%clk 01:32:11] [%emt 00:10:08]} 9.bxa3 {[%clk 01:41:15] [%emt
00:00:19]} 9...Qe7 {[%clk 01:16:08] [%emt 00:16:34]} 10.Qc2 {[%clk 01:26:38]
[%emt 00:15:06]} 10...e5 {[%clk 01:09:58] [%emt 00:06:40]} 11.dxe5 {[%clk
01:25:46] [%emt 00:01:22]} 11...Nxe5 {[%clk 01:10:19] [%emt 00:00:09]} 12.Nxe5 
{[%clk 01:26:08] [%emt 00:00:08]} 12...Qxe5 {[%clk 01:10:45] [%emt 00:00:05]} 
13.Bf4 {[%clk 01:25:15] [%emt 00:01:22]} 13...Qc5 {[%clk 01:03:07] [%emt
00:08:08]} 14.Be3 {[%clk 01:25:26] [%emt 00:00:19]} 14...Qe7 {[%clk 01:03:23]
[%emt 00:00:14]} 15.Qxc4 {[%clk 01:25:25] [%emt 00:00:31]} 15...Re8 {[%clk
01:03:40] [%emt 00:00:14]} 16.Rfd1 {[%clk 01:10:30] [%emt 00:15:25]} 16...c6 
{[%clk 01:00:50] [%emt 00:03:20]} 17.Qb4 {[%clk 01:05:06] [%emt 00:05:54]} 
17...Bg4 {[%clk 00:51:55] [%emt 00:09:24]} 18.Rdb1 {[%clk 00:58:49] [%emt
00:06:47]} 18...Bf5 {[%clk 00:31:17] [%emt 00:21:08]} 19.Rb2 {[%clk 00:58:12]
[%emt 00:01:07]} 19...Qe6 {[%clk 00:28:33] [%emt 00:03:15]} 20.Qxb7 {[%clk
00:56:34] [%emt 00:02:06]} 20...Be4 {[%clk 00:28:58] [%emt 00:00:07]} 21.Rc1 
{[%clk 00:49:49] [%emt 00:07:15]} 21...Bxg2 {[%clk 00:23:43] [%emt 00:05:45]} 
22.Kxg2 {[%clk 00:49:27] [%emt 00:00:51]} 22...Nd5 {[%clk 00:24:06] [%emt
00:00:08]} 23.Rb3 {[%clk 00:45:24] [%emt 00:04:33]} 23...Rac8 {[%clk 00:22:04]
[%emt 00:02:32]} 24.Qxa7 {[%clk 00:36:28] [%emt 00:09:26]} 24...Qg4 {[%clk
00:19:11] [%emt 00:03:23]} 25.f3 {[%clk 00:27:37] [%emt 00:09:20]} 25...Qg6 
{[%clk 00:15:25] [%emt 00:04:16]} 26.Qc5 {[%clk 00:21:25] [%emt 00:06:42]} 
26...Re5 {[%clk 00:14:17] [%emt 00:01:39]} 27.Kf2 {[%clk 00:21:52] [%emt
00:00:02]} 27...Rce8 {[%clk 00:13:55] [%emt 00:00:52]} 28.Rcb1 {[%clk 00:06:13]
[%emt 00:16:09]} 28...f5 {[%clk 00:12:39] [%emt 00:01:47]} 29.Qc4 {[%clk
00:06:11] [%emt 00:00:32]} 29...Qe6 {[%clk 00:09:49] [%emt 00:03:20]} 30.Bd4 
{[%clk 00:04:15] [%emt 00:02:25]} 30...Rxe2+ {[%clk 00:10:09] [%emt 00:00:10]} 
31.Kg1 {[%clk 00:04:43] [%emt 00:00:02]} 31...Re1+ {[%clk 00:08:35] [%emt
00:02:04]} 32.Kh2 {[%clk 00:05:10] [%emt 00:00:02]} 32...Re2+ {[%clk 00:08:34]
[%emt 00:00:32]} 33.Kg1 {[%clk 00:05:39]} 33...f4 {[%clk 00:01:27] [%emt
00:07:37]} 34.g4 {[%clk 00:05:26] [%emt 00:00:43]} 34...h5 {[%clk 00:01:48]
[%emt 00:00:09]} 35.Rb8 {[%clk 00:02:29] [%emt 00:03:27]} 35...Re1+ {[%clk
00:01:49] [%emt 00:00:30]} 36.Kf2 {[%clk 00:01:47] [%emt 00:01:11]} 36...Re2+ 
{[%clk 00:01:48] [%emt 00:00:32]} 37.Kg1 {[%clk 00:01:59] [%emt 00:00:17]} 
37...Re1+ {[%clk 00:00:36] [%emt 00:01:42]} 38.Kf2 {[%clk 00:02:27] [%emt
00:00:01]} 38...Rxb1 {[%clk 00:00:59] [%emt 00:00:09]} 39.Rxb1 {[%clk 00:02:55]
[%emt 00:00:02]} 39...hxg4 {[%clk 00:01:22] [%emt 00:00:06]} 40.fxg4 {[%clk
00:03:07] [%emt 00:00:17]} 40...Qxg4 {[%clk 00:01:29] [%emt 00:00:24]} 41.Rg1 
{[%clk 00:49:23] [%emt 00:04:14]} 41...Qxh4+ {[%clk 00:50:55] [%emt 00:01:04]} 
42.Kf3 {[%clk 00:49:47] [%emt 00:00:05]} 42...g5 {[%clk 00:41:30] [%emt
00:09:56]} 43.Qf1 {[%clk 00:42:12] [%emt 00:08:05]} 43...Qh5+ {[%clk 00:30:04]
[%emt 00:11:56]} 44.Kf2 {[%clk 00:42:29] [%emt 00:00:11]} 44...Qh4+ {[%clk
00:29:21] [%emt 00:01:15]} 45.Kf3 {[%clk 00:42:37] [%emt 00:00:21]} 45...Ne3 
{[%clk 00:24:38] [%emt 00:05:14]} 46.Qb1 {[%clk 00:42:26] [%emt 00:00:40]} 
46...g4+ {[%clk 00:19:17] [%emt 00:05:52]} 47.Ke2 {[%clk 00:42:50] [%emt
00:00:06]} 47...Qh2+ {[%clk 00:17:39] [%emt 00:02:08]} 48.Kd3 {[%clk 00:43:15]
[%emt 00:00:04]} 48...Qh7+ {[%clk 00:17:56] [%emt 00:00:14]} 49.Kd2 {[%clk
00:43:17] [%emt 00:00:27]} 49...Qxb1 {[%clk 00:17:56] [%emt 00:00:31]} 50.Rxb1 
{[%clk 00:43:41] [%emt 00:00:05]} 50...g3 {[%clk 00:16:27] [%emt 00:02:00]} 
51.Bc5 {[%clk 00:42:36] [%emt 00:01:35]} 51...Nd5 {[%clk 00:14:53] [%emt
00:02:05]} 52.Re1 {[%clk 00:42:24] [%emt 00:00:41]} 52...Kf7 {[%clk 00:12:16]
[%emt 00:03:07]} 53.a4 {[%clk 00:40:32] [%emt 00:02:22]} 53...Ra8 {[%clk
00:11:04] [%emt 00:01:43]} 54.Re4 {[%clk 00:40:52] [%emt 00:00:09]} 54...Kf6 
{[%clk 00:11:23] [%emt 00:00:11]} 55.Rc4 {[%clk 00:37:09] [%emt 00:04:13]} 
55...Kf5 {[%clk 00:11:49] [%emt 00:00:04]} 56.Ke2 {[%clk 00:36:57] [%emt
00:00:41]} 56...Kg4 {[%clk 00:12:03] [%emt 00:00:17]} 57.a3 {[%clk 00:37:06]
[%emt 00:00:22]} 57...Re8+ {[%clk 00:11:51] [%emt 00:00:41]} 58.Kd2 {[%clk
00:37:13] [%emt 00:00:23]} 58...Kh3 {[%clk 00:12:04] [%emt 00:00:17]} 59.Rc1 
{[%clk 00:36:25] [%emt 00:01:18]} 59...f3 {[%clk 00:12:20] [%emt 00:00:15]} 
60.Rf1 {[%clk 00:36:45] [%emt 00:00:08]} 60...f2 {[%clk 00:11:32] [%emt
00:01:18]} 0-1

[Event "FIDE Grand Swiss 2023"]
[Site "Villa Marina, Douglas, Isle of Man"]
[Date "2023.10.28"]
[Round "4.41"]
[White "Karthikeyan, Murali"]
[Black "Shevchenko, Kirill"]
[Result "1/2-1/2"]
[WhiteElo "2611"]
[BlackElo "2671"]
[EventDate "2023.10.25"]
[ECO "B32"]
[PlyCount "78"]
[BlackFideId "14129574"]
[TimeControl "40/100 + 20/50 + 15 + 30s/move"]
[WhiteFideId "5074452"]

1.e4 {[%clk 01:40:56] [%emt 00:00:03]} 1...c5 {[%clk 01:40:54] [%emt 00:00:06]} 
2.Nf3 {[%clk 01:41:20] [%emt 00:00:06]} 2...Nc6 {[%clk 01:41:20] [%emt
00:00:04]} 3.d4 {[%clk 01:41:44] [%emt 00:00:06]} 3...cxd4 {[%clk 01:41:42]
[%emt 00:00:08]} 4.Nxd4 {[%clk 01:42:08] [%emt 00:00:06]} 4...e5 {[%clk
01:41:11] [%emt 00:01:01]} 5.Nb5 {[%clk 01:42:03] [%emt 00:00:35]} 5...d6 
{[%clk 01:41:27] [%emt 00:00:14]} 6.c4 {[%clk 01:39:50] [%emt 00:02:43]} 6...g6 
{[%clk 01:37:30] [%emt 00:04:28]} 7.N1c3 {[%clk 01:38:32] [%emt 00:01:47]} 
7...a6 {[%clk 01:37:27] [%emt 00:00:33]} 8.Na3 {[%clk 01:38:57] [%emt 00:00:05]} 
8...Be6 {[%clk 01:37:46] [%emt 00:00:11]} 9.Be3 {[%clk 01:37:40] [%emt
00:01:47]} 9...Nf6 {[%clk 01:28:39] [%emt 00:09:37]} 10.Be2 {[%clk 01:35:27]
[%emt 00:02:42]} 10...Bg7 {[%clk 01:27:43] [%emt 00:01:27]} 11.O-O {[%clk
01:29:47] [%emt 00:06:10]} 11...O-O {[%clk 01:27:21] [%emt 00:00:52]} 12.Nc2 
{[%clk 01:23:03] [%emt 00:07:15]} 12...Rc8 {[%clk 01:20:46] [%emt 00:07:04]} 
13.b3 {[%clk 01:06:42] [%emt 00:16:51]} 13...Qa5 {[%clk 00:47:11] [%emt
00:34:06]} 14.Qe1 {[%clk 00:50:18] [%emt 00:16:53]} 14...Rfd8 {[%clk 00:27:55]
[%emt 00:19:46]} 15.Nd5 {[%clk 00:34:37] [%emt 00:16:11]} 15...Qxe1 {[%clk
00:20:06] [%emt 00:08:20]} 16.Nxf6+ {[%clk 00:35:00] [%emt 00:00:06]} 16...Bxf6 
{[%clk 00:20:34] [%emt 00:00:03]} 17.Raxe1 {[%clk 00:19:37] [%emt 00:15:52]} 
17...Nd4 {[%clk 00:15:14] [%emt 00:05:50]} 18.Bxd4 {[%clk 00:19:37] [%emt
00:00:30]} 18...exd4 {[%clk 00:14:23] [%emt 00:01:21]} 19.Rd1 {[%clk 00:16:51]
[%emt 00:03:16]} 19...d5 {[%clk 00:13:10] [%emt 00:01:43]} 20.Nxd4 {[%clk
00:14:29] [%emt 00:02:52]} 20...dxc4 {[%clk 00:06:24] [%emt 00:07:17]} 21.Nxe6 
{[%clk 00:14:51] [%emt 00:00:07]} 21...Rxd1 {[%clk 00:06:50] [%emt 00:00:04]} 
22.Rxd1 {[%clk 00:15:07] [%emt 00:00:14]} 22...cxb3 {[%clk 00:07:04] [%emt
00:00:17]} 23.axb3 {[%clk 00:15:13] [%emt 00:00:23]} 23...fxe6 {[%clk 00:07:30]
[%emt 00:00:04]} 24.f4 {[%clk 00:14:08] [%emt 00:01:35]} 24...Rd8 {[%clk
00:06:47] [%emt 00:01:13]} 25.Rxd8+ {[%clk 00:14:23] [%emt 00:00:14]} 25...Bxd8 
{[%clk 00:07:16] [%emt 00:00:02]} 26.Bc4 {[%clk 00:14:34] [%emt 00:00:19]} 
26...Kf7 {[%clk 00:07:30] [%emt 00:00:16]} 27.f5 {[%clk 00:14:57] [%emt
00:00:07]} 27...gxf5 {[%clk 00:06:15] [%emt 00:01:45]} 28.exf5 {[%clk 00:15:22]
[%emt 00:00:05]} 28...Kf6 {[%clk 00:06:38] [%emt 00:00:07]} 29.Bxe6 {[%clk
00:15:47] [%emt 00:00:05]} 29...b5 {[%clk 00:06:59] [%emt 00:00:09]} 30.Kf2 
{[%clk 00:15:55] [%emt 00:00:22]} 30...a5 {[%clk 00:07:22] [%emt 00:00:08]} 
31.Bd7 {[%clk 00:15:59] [%emt 00:00:25]} 31...a4 {[%clk 00:07:41] [%emt
00:00:11]} 32.bxa4 {[%clk 00:16:23] [%emt 00:00:07]} 32...bxa4 {[%clk 00:08:09]
[%emt 00:00:02]} 33.Bxa4 {[%clk 00:16:46] [%emt 00:00:06]} 33...Kxf5 {[%clk
00:07:58] [%emt 00:00:41]} 34.Bc2+ {[%clk 00:17:10] [%emt 00:00:06]} 34...Kg4 
{[%clk 00:08:23] [%emt 00:00:03]} 35.Bxh7 {[%clk 00:17:24] [%emt 00:00:17]} 
35...Bb6+ {[%clk 00:08:51] [%emt 00:00:02]} 36.Kf1 {[%clk 00:17:38] [%emt
00:00:16]} 36...Bc7 {[%clk 00:09:17] [%emt 00:00:04]} 37.Kg1 {[%clk 00:18:01]
[%emt 00:00:07]} 37...Kh4 {[%clk 00:09:39] [%emt 00:00:09]} 38.g3+ {[%clk
00:18:17] [%emt 00:00:13]} 38...Bxg3 {[%clk 00:10:01] [%emt 00:00:08]} 39.hxg3+ 
{[%clk 00:18:44] [%emt 00:00:04]} 39...Kxg3 {[%clk 00:09:59]} 1/2-1/2